Cogmind - Beta 15 --- EXPLORER MODE // 2025.07.16 @ 01:16:11 Player: rootmos Result: Destroyed by 8N-2CA(R) with Subdweller Shrapnel Launcher Performance ------------- Evolutions (0) 0 Regions Visited (2) 400 Robots Destroyed (24) 120 Value Destroyed (835) 835 Prototype IDs (1) 20 Alien Tech Used (0) 0 Bonus (-6) -6 TOTAL SCORE: 1369 Bonus ------- Friendly Fire -6 Cogmind --------- Core Integrity 0/250 Matter 171/300 Energy 200/200 System Corruption 0% Temperature Cool (0) Movement Treading (240) Ox1 Location -10/Subcaves Parts ------- > --- POWER (1) -------- Subdweller Power Source > --- PROPULSION (2+1) - Improved Treads Improved Treads (+) > --- UTILITY (3+1) ---- Cooling System (+) Huge Storage Unit Targeting Computer Rainbow Chip > --- WEAPON (2+1) ----- Light Assault Rifle (+) > --- INVENTORY (25) --- Light Ion Engine Subdweller Monowheel Subdweller Monowheel Improved Heat Sink Cooling System Disposable Heat Sink Medium Storage Unit Light Humpback Makeshift Kinetic Plating EM Pulse Gun Riot Gun Subdweller Laser Light Assault Rifle Grenade Launcher Multitool Peak State ------------ > --- POWER ------------ Light Nuclear Core > --- PROPULSION ------- Improved Treads Improved Treads Improved Treads > --- UTILITY ---------- Cooling System Huge Storage Unit Targeting Computer Rainbow Chip > --- WEAPON ----------- EM Pulse Gun Light Assault Rifle Subdweller Machine Gun > --- INVENTORY -------- Subdweller Monowheel Subdweller Monowheel Improved Heat Sink Cooling System Medium Storage Unit Light Humpback Particle Gun Light Assault Rifle Battle Cannon Grenade Launcher Multitool [Rating: 32] Favorites ----------- Power Light Ion Engine Engine Light Ion Engine Power Core Light Nuclear Core Propulsion Improved Treads Treads Improved Treads Utility Targeting Computer Device Cooling System Storage Medium Storage Unit Processor Targeting Computer Protection Light Armor Plating Weapon Assault Rifle Energy Gun Particle Gun Ballistic Gun Assault Rifle Ballistic Cannon Battle Cannon Launcher Grenade Launcher Special Weapon Multitool Build | -11 -10 -10 ------- Run | Yrd Mat Sub Slots Evolved 1 | . 1 . Power . | . . . Propulsion . | . . . Utility 1 | . 1 . Weapon . | . . . Parts Attached 34 | 9 8 17 Power 8 | 2 . 6 Engine 7 | 2 . 5 Core 1 | . . 1 Reactor . | . . . Propulsion 6 | 2 2 2 Treads 6 | 2 2 2 Leg . | . . . Wheel . | . . . Hover . | . . . Flight . | . . . Utility 9 | 2 4 3 Device 1 | . . 1 Storage 3 | 1 2 . Processor 3 | 1 . 2 Hackware . | . . . Protection 2 | . 2 . Artifact . | . . . Weapon 11 | 3 2 6 Energy Gun 4 | 3 1 . Energy Cannon . | . . . Ballistic Gun 4 | . 1 3 Ballistic Cannon 1 | . . 1 Launcher 1 | . . 1 Special Weapon 1 | . . 1 Impact Weapon . | . . . Slashing Weapon . | . . . Piercing Weapon . | . . . Special Melee Weapon . | . . . Unidentified Prototypes 1 | . . 1 Parts Lost 11 | . . 11 Power 3 | . . 3 Propulsion 2 | . . 2 Utility 2 | . . 2 Weapon 4 | . . 4 Highest Loss Streak 3 | . . 3 To Critical Strikes . | . . . Average Backups 8 | . 5 11 Power . | . 1 . Propulsion 1 | . . 1 Utility 3 | . 2 4 Weapon 2 | . 1 3 Tool/Special . | . . . Unused Backups 11 | . 1 10 Power . | . . . Propulsion 2 | . . 2 Utility 6 | . 1 5 Weapon 3 | . . 3 Tool/Special . | . . . Average Slot Usage (%) 96 | . 99 94 Engine 9 | . 12 7 Treads 25 | . 25 25 Device 4 | . . 7 Storage 10 | . 12 9 Processor 14 | . 12 16 Protection 5 | . 11 2 Energy Gun 9 | . 12 8 Ballistic Gun 11 | . 11 12 Ballistic Cannon 2 | . . 3 Peak Build Rating 32 | 7 12 32 Average Rating 19 | 5 9 26 On Entrance 6 | . 7 12 Naked Turns . | . . . Heaviest Build 96 | 17 91 96 Greatest Support 69 | 40 46 69 Greatest Overweight (x) 2 | . 2 1 Average Overweight (x) . | . . . Largest Inventory Capacity 25 | 10 25 25 Average Capacity 16 | 9 15 17 Most Carried 16 | 1 10 16 Average Carried 9 | . 5 11 Final Capacity 25 | 10 10 25 Final Carried 16 | 1 10 16 Class Distribution -------------------- 61% | Hacker-Mutant 38% | Hacker-Gunner Dominant Class ---------------- Hacker-Mutant | -10/Materials Hacker-Gunner | -10/Subcaves Resources | -11 -10 -10 ----------- Run | Yrd Mat Sub Matter Collected 1228 | 129 347 752 Remotely . | . . . Salvage Created 879 | . 403 476 Parts 51 | . 20 31 Haulers Intercepted . | . . . Recyclers Shooed . | . . . Parts Field Recycled . | . . . Retrieved Matter . | . . . Parts Self-Destructed . | . . . Prevented . | . . . Kills | -11 -10 -10 ------- Run | Yrd Mat Sub Combat Hostiles Destroyed 21 | . 8 13 Guns 18 | . 8 10 Cannons 3 | . . 3 Classes Destroyed 7 | . 2 5 Turret 2 | . . 2 Watcher 1 | . 1 . Swarmer 3 | . . 3 Grunt 8 | . 8 . Sentry 1 | . . 1 Cobbler 1 | . . 1 Subdweller 9 | . . 9 Best Kill Streak 3 | . 2 3 Combat Bots Only 3 | . 2 3 Max Kills in Single Turn 1 | . 1 1 Gunslinging . | . . . Exploded . | . . . Melee . | . . . Uniques/NPCs Destroyed . | . . . Combat | -11 -10 -10 -------- Run | Yrd Mat Sub Hostile Shots Fired 210 | . 43 167 Missed 72 | . 10 62 Hits 138 | . 33 105 Projectile 138 | . 33 105 AOE 9 | . . 9 Critical Strikes 2 | . 1 1 Damage Taken 1628 | . 276 1352 Core 277 | . 48 229 Absorbed by Shields . | . . . Ignored by Resistances 910 | . 172 738 Core Remaining (%) 100 | 100 . . Volleys Fired 113 | . 27 86 Largest 3 | . 2 3 Hottest 108 | . 90 108 Shots Fired 244 | . 54 190 Gun 195 | . 54 141 Cannon 31 | . . 31 Launcher 18 | . . 18 Special . | . . . Kinetic 139 | . 22 117 Thermal 54 | . 27 27 Explosive 18 | . . 18 Electromagnetic 33 | . 5 28 Robot Hit Streak 43 | . 17 43 Robot Miss Streak 2 | . 1 2 Penetration Max . | . . . Secondary Targets 2 | . 2 . Max Gunslinging Chain 1 | . 1 . Shots Hit Robots 172 | . 47 125 Core Hits 51 | . 20 31 Critical Kills 1 | . . 1 Critical Parts Destroyed . | . . . Critical Strikes 8 | . 4 4 Burn 4 | . 4 . Destroy 1 | . . 1 Blast 2 | . . 2 Corrupt 1 | . . 1 Melee Attacks . | . . . Impact . | . . . Slashing . | . . . Piercing . | . . . Sneak Attacks . | . . . Combat Hostiles . | . . . Follow-up Attacks . | . . . Damage Inflicted 1979 | . 617 1362 Guns 1484 | . 617 867 Cannons 404 | . . 404 Explosions 88 | . . 88 Melee . | . . . Ramming 3 | . . 3 Kinetic 1102 | . 228 874 Thermal 474 | . 320 154 Explosive 88 | . . 88 Electromagnetic 312 | . 69 243 Impact . | . . . Slashing . | . . . Piercing . | . . . Highest Corruption . | . . . Average Corruption . | . . . Corruption Purged . | . . . Corruption Blocked . | . . . Overload Shots . | . . . Overflow Damage 14 | . . 14 Projectiles 14 | . . 14 Explosions . | . . . Melee . | . . . Knockbacks 7 | . . 7 Impact 1 | . . 1 Kinetic 6 | . . 6 Secondary . | . . . Self-Inflicted Damage 45 | . . 45 Shots 3 | . . 3 Rammed 1 | . . 1 Targets Rammed 1 | . . 1 Kicked . | . . . Crushed . | . . . Highest Temperature 351 | . 351 . Average Temperature 97 | . 97 . Received Heat Transfer 750 | . 273 477 Effects 2 | . 2 . Interference 2 | . 2 . Siege Activations . | . . . Martial Activations . | . . . Shielding Activations . | . . . Robots Disrupted . | . . . Combat Hostiles . | . . . Robots Corrupted . | . . . Combat Hostiles . | . . . Parts Fried . | . . . Impact Corruptions . | . . . Robots Melted . | . . . Combat Hostiles . | . . . Parts Melted 3 | . 3 . Heat Transferred 1517 | . 1147 370 Parts Sabotaged . | . . . Parts Stolen . | . . . Parts Stripped . | . . . Power Chain Reactions 1 | . . 1 Alert | -11 -10 -10 ------- Run | Yrd Mat Sub Maximum Alert Level . | . . . Low Security (%) 100 | 100 100 . Level 1 . | . . . Level 2 . | . . . Level 3 . | . . . Level 4 . | . . . Level 5 . | . . . High Security . | . . . Max Security . | . . . Peak Influence 51 | . 51 . Initial . | . . . Average 4 | . 4 . Influence Increases 825 | . 210 615 Destroy 0b10 Robot/C 280 | . 160 120 Destroy 0b10 Robot/NC 5 | . 5 . Destroy Leader 42 | . 42 . Successful Hack 2 | . 2 . Destroy Structure 1 | . 1 . Lose Combat Pursuer 495 | . . 495 Influence Decreases 825 | . 210 615 Time Decay 795 | . 210 585 Lost Part 30 | . . 30 Squads Dispatched . | . . . Investigation . | . . . Extermination . | . . . Reinforcement . | . . . Assault . | . . . Garrison . | . . . Intercept . | . . . Searches Triggered . | . . . Construction Impeded . | . . . Haulers Reinforced . | . . . Active Scanning Responses . | . . . Cargo Convoy Interrupts . | . . . Stealth | -11 -10 -10 --------- Run | Yrd Mat Sub Distress Signals 1 | . 1 . Communications Jammed . | . . . Distress Signals . | . . . Times Spotted 54 | . 12 42 Peak Tracking Total 5 | . 3 5 Tactical Retreats 4 | . . 4 Traps | -11 -10 -10 ------- Run | Yrd Mat Sub Traps Triggered 7 | . 2 5 Indirectly . | . . . Trap Hack Attempts . | . . . Triggered . | . . . Disarmed . | . . . Reprogrammed . | . . . Reused . | . . . Traps Extracted . | . . . Installed . | . . . Triggered . | . . . Machines | -11 -10 -10 ---------- Run | Yrd Mat Sub Machines Disabled 5 | . . 5 Max in Single Turn 2 | . . 2 Machines Repaired . | . . . Machines Dismantled . | . . . Machines Sabotaged . | . . . Overloaded Fab Kills . | . . . Hacking | -11 -10 -10 --------- Run | Yrd Mat Sub Machines Accessed 4 | . 3 1 Terminals 3 | . 3 . Fabricators . | . . . Repair Stations . | . . . Recycling Units . | . . . Scanalyzers . | . . . Garrison Access . | . . . Total Hacks 10 | . 7 3 Successful 7 | . 4 3 Failed 3 | . 3 . Catastrophic 2 | . 2 . Database Lockouts . | . . . Manual 4 | . 4 . Terminals 7 | . 7 . Fabricators . | . . . Repair Stations . | . . . Recycling Units . | . . . Scanalyzers . | . . . Garrison Access . | . . . Terminal Hacks 7 | . 4 3 Record 5 | . 2 3 Locate Traps 2 | . 2 . Fabricator Hacks . | . . . Repair Station Hacks . | . . . Recycling Unit Hacks . | . . . Scanalyzer . | . . . Garrison Access Hacks . | . . . Unauthorized Hacks . | . . . Terminals . | . . . Fabricators . | . . . Repair Stations . | . . . Recycling Units . | . . . Scanalyzers . | . . . Garrison Access . | . . . Data Cores Recovered . | . . . Used . | . . . Hacking Detections 1 | . 1 . Full Trace Events 1 | . 1 . Feedback Events . | . . . Feedback Blocked . | . . . Robot Schematics Acquired . | . . . Robots Built . | . . . Authchips . | . . . Time . | . . . Total Robot Build Rating . | . . . Part Schematics Acquired . | . . . Parts Built . | . . . Authchips . | . . . Time . | . . . Total Part Build Rating . | . . . Parts Repaired . | . . . Time . | . . . Parts Recycled . | . . . Recycled Matter . | . . . Retrieved Matter . | . . . Retrieved Components . | . . . Parts Scanalyzed . | . . . Part Schematics Acquired . | . . . Parts Damaged . | . . . Bothacking | -11 -10 -10 ------------ Run | Yrd Mat Sub Used RIF Installer . | . . . Robots Hacked . | . . . Non-combat . | . . . Combat . | . . . Robot Hacks Applied . | . . . Relay Couplers Released . | . . . Fabnet Peak Effective % . | . . . Robots Rewired . | . . . Allies Hacked . | . . . Hacks Repelled . | . . . Allies | -11 -10 -10 -------- Run | Yrd Mat Sub Total Allies . | . . . Largest Group . | . . . Highest-Rated Group . | . . . Highest-Rated Ally . | . . . Total Orders . | . . . Ally Attacks . | . . . Total Damage . | . . . Kills . | . . . Allies Corrupted . | . . . Allies Melted . | . . . Intel | -11 -10 -10 ------- Run | Yrd Mat Sub Active Infowar (turns) . | . . . Robot Analysis Total . | . . . Derelict Logs Recovered 1 | . . 1 Drone Launches . | . . . Drone Recoveries . | . . . Exploration | -11 -10 -10 ------------- Run | Yrd Mat Sub Turns Passed 4117 | 93 1418 2606 Spaces Moved 1888 | 48 664 1176 Core 3 | 3 . . Treads 1885 | 45 664 1176 Legs . | . . . Wheels . | . . . Hover . | . . . Flight . | . . . Fastest Speed 50 | 50 160 160 Average Speed 192 | 153 194 192 Slowest Speed 320 | 160 320 240 Overloaded Moves . | . . . Propulsion Burnouts . | . . . Robots Hopped . | . . . Potential Cave-ins 3 | . . 3 Cave-ins Triggered . | . . . Exploration Rate (%) 46 | 4 83 52 Regions Visited 2 Branch Regions 1 Pre-discovered Areas . | . . . Known Exits Taken 2 | 1 1 . Unknown Exits Taken . | . . . Scrap Searched 3 | . . 3 Spaces Dug 20 | . . 20 Terrain Destroyed 54 | . . 54 Melee . | . . . Projectile 1 | . . 1 AOE 53 | . . 53 Terrain Rammed . | . . . Walls Destroyed . | . . . Machines Disabled . | . . . Actions | -11 -10 -10 --------- Run | Yrd Mat Sub Total 2147 | 61 737 1349 Wait 37 | 1 20 16 Move 1886 | 47 663 1176 Hop . | . . . Pick Up 29 | . 9 20 Fast Attach 14 | 7 3 4 Attach 10 | . 1 9 Detach 2 | . . 2 Swap 40 | 6 9 25 Drop 15 | . 5 10 Fire 113 | . 27 86 Melee . | . . . Ram . | . . . Kick . | . . . Crush 1 | . . 1 Escape Stasis . | . . . Rewire . | . . . Trap . | . . . Miscellaneous . | . . . Route ------- -11/Scrapyard -10/Materials (discovered 5 exits: *Mat x3 / *Min / *Sub) -10/Subcaves (discovered 3 exits: *Mat x2 / *Rec) History --------- Turn | Location | Event 32 | -11/Scrapyard | Identified exit to Materials 32 | -11/Scrapyard | Discovered exit to Materials (range 15) 94 | -11/Scrapyard | Entered Materials 94 | -10/Materials | Evolved 1 slot: Utility x1 304 | -10/Materials | Build established: Hacker-Mutant 459 | -10/Materials | Identified exit to Materials 459 | -10/Materials | Discovered exit to Materials (range 8) 924 | -10/Materials | Discovered exit to Materials (range 13) 1351 | -10/Materials | Discovered exit to Materials (range 16) 1467 | -10/Materials | Identified exit to Mines 1467 | -10/Materials | Discovered exit to Mines (range 7) 1498 | -10/Materials | Identified exit to Subcaves 1498 | -10/Materials | Discovered exit to Subcaves (range 10) 1512 | -10/Materials | Entered Subcaves 1513 | -10/Subcaves | Approached by a straggling Scientist 1627 | -10/Subcaves | Visited 4L-MR0's lab 1662 | -10/Subcaves | Found Prototype Processor 2022 | -10/Subcaves | Lost 3 parts (2u1w) 2102 | -10/Subcaves | Identified Rainbow Chip 2103 | -10/Subcaves | Attached Rainbow Chip, gained temporary slots: Power, Propulsion, Utility, Weapon 2239 | -10/Subcaves | A swath of the cavern ceiling suddenly collapsed 2428 | -10/Subcaves | Identified exit to Recycling 2428 | -10/Subcaves | Discovered exit to Recycling (range 14) 2471 | -10/Subcaves | Core integrity fell below 50% 2508 | -10/Subcaves | Learned Materials terminal intel 2773 | -10/Subcaves | Build established: Hacker-Gunner 3047 | -10/Subcaves | Identified exit to Materials 3047 | -10/Subcaves | Discovered exit to Materials (range 12) 3469 | -10/Subcaves | A swath of the cavern ceiling suddenly collapsed 3670 | -10/Subcaves | Core integrity fell below 20% 3949 | -10/Subcaves | Discovered exit to Materials (range 8) 4118 | -10/Subcaves | Destroyed by 8N-2CA(R) with Subdweller Shrapnel Launcher Last Messages --------------- 03875_ Acquired Lgt. Ion Engine. 03949_ EXIT=FOUND: MATERIALS 04033_ The unstable cave ceiling collapses. 04037_ 21-RMV(R) Sub. Monowheel blasted off. 04043_ The unstable cave ceiling collapses. 04043_ 21-RMV(R) destroyed. 04057_ The unstable cave ceiling collapses. 04073_ Acquired 5 matter. 04075_ Acquired 35 matter. 04078_ The unstable cave ceiling collapses. 04091_ Acquired Disposable Heat Sink. 04092_ Acquired 4 matter. 04100_ Z4-ZKD(R) knocked back. 04101_ The unstable cave ceiling collapses. 04103_ Z4-ZKD(R) destroyed. 04108_ Acquired 52 matter. 04112_ The unstable cave ceiling collapses. 04112_ Battle Cannon destroyed. 04112_ Imp. Treads destroyed. 04118_ Hvy. Assault Rifle destroyed. Map ----- +----------------------------------------------------+ | ?????????????????????????????????????????????????? | | ?????????????????????????????????????????????????? | | ?????????????????????????????????????????????????? | | ?????????????????????????????????????????????????? | | ?????????????????????????????????????????????????? | | ?????????????????????????????????????????????????? | | ?????????????????????????????????????????????????? | | ?????????????????????????????????????????????????? | | ?????????????????????????????????????????????????? | | ?????????????????????????????????????????????????? | | ?????????????????????????????????????????????????? | | ?????????????????????????????????????????????????? | | ?????????????????????????????????????????????????? | | ?????????????????????????????????????????????????? | | ?????????????????????????????????????????????????? | | ???????????????????????##????????????????????????? | | ???????????????????????# ##??????????????????????? | | ??????????????????????? ??????????????????????? | | ??????????????????????## ??????????????????????? | | ?????????????????????## #####?????????????????? | | ????????????????#???## ## #?????????????????? | | ?????????????#??#$?## ;; #???????????###??? | | ??????????# ## # #???###????## #### | | ??????????# < R #??##"###### ## | | ??????????# #####"" # # ## | | ????????????# @ ; ## "" | | ??????????????# ##; & #""" | | ????????????????????# =&=[ " "##### | | ????????????????????# ! # < #### ### | | ????????????????????# " "#?# | | ???????????????????#; ; "#?## | | ???????????????????#####; # ## " ### | | ???????????????????????# ""###### """## | | ???????????????????????###;; ;;;;;####????# ### ## | | ??????????????????????????#;;# # ##???????###?# ## | | ???????????????????????????#######????????????#"## | | ????????????????????????????????????????????###"" | | ????????????????????????????????????????????#""= " | | ????????????????????????????????????????????# | | | ????????????????????????????????????????????## # | | ?????????????????????????????????????????????##### | | ?????????????????????????????????????????????????? | | ?????????????????????????????????????????????????? | | ?????????????????????????????????????????????????? | | ?????????????????????????????????????????????????? | | ?????????????????????????????????????????????????? | | ?????????????????????????????????????????????????? | | ?????????????????????????????????????????????????? | | ?????????????????????????????????????????????????? | | ?????????????????????????????????????????????????? | +----------------------------------------------------+ Best States ------------- Heat Dissipation 47 Energy Generation 20 Energy Capacity 265 Matter Stores 300 Matter Capacity 300 Sight Range 16 Terrain Scan Density 10 Armor Coverage 150 Resistance: KI 35 Resistance: TH 35 Resistance: EX 35 Resistance: EM 35 Resistance: I 35 Resistance: S 35 Resistance: P 35 Evasion (%) 40 Targeting Accuracy 5 Recoil Reduction 3 Offensive Hacking 20 Item Schematics ----------------- None Robot Schematics ------------------ None Fabricated ------------ Nothing Repaired ---------- Nothing Alien Tech Used ----------------- None Achievements -------------- None Challenges ------------ None Game ------ Seed ClaymoresAdvancedFlakker Manual? 0 Play Time 00:47:35 Cumulative 44.6 hours Start 2025.07.16 @ 00:22:49 End 2025.07.16 @ 01:16:11 Sessions 1 Manual Loads 0 Difficulty Explorer Special Mode None Game No. 18 Rogue 0 Adventurer 0 Explorer 18 Win Type - Total 0 Types 0/0/0/0/0/0/0/0/0/0 Lore% 14 Gallery% 20 Achievement% 18 Wizard Run 0 Options --------- Layout 0 ASCII 1 Keyboard 1 Movement Vi Keybinds 0 Fullscreen 2 Font 24/Smallcaps Map View 76x50 Zoom Use 0% Tactical HUD 1 Map Filters NONE Filters NONE Steam 0 RUN: b2821ac8-745a-494c-84bf-7c58d001d38d